bitfinex/quotes_SOLUSD_20250607
["timestamp","ask_amount","ask_price","bid_price","bid_amount"]
[1749256363673,14.11052736,147.78,147.76,59.54763045]
[1749256367375,14.11052736,147.79,147.76,59.54763045]
[1749256367676,111.25829086,147.81,147.76,73.65815781]
[1749256367846,123.84521822,147.81,147.77,14.11052736]
[1749256368177,122.99932736,147.81,147.77,14.11052736]
[1749256368476,40.11052736,147.83,147.79,14.11052736]
[1749256368779,14.11052736,147.82,147.8,41.8]
[1749256370073,14.11052736,147.82,147.8,48.56572177]
[1749256372483,0.84568338,147.83,147.8,48.56572177]
[1749256372676,14.11052736,147.82,147.8,48.56572177]
[1749256374592,14.95619364,147.84,147.8,62.67624913]
[1749256374788,14.11052736,147.83,147.8,48.56572177]
[1749256375195,9.02627111,147.83,147.8,48.56572177]
[1749256375568,9.87193739,147.84,147.8,57.59199288]
[1749256376683,9.87193739,147.84,147.8,59.52572177]
[1749256377278,9.02627111,147.83,147.8,59.52572177]
[1749256380799,9.02627111,147.83,147.8,76.44047143]
[1749256381136,117.91507111,147.85,147.81,9.02627111]
[1749256381604,9.02627111,147.85,147.81,9.02627111]
[1749256382786,9.02627111,147.86,147.83,6.76452682]
[1749256382994,9.02627111,147.86,147.84,41.78]
[1749256385304,9.02627111,147.86,147.84,48.54384524]
[1749256388103,14.90408894,147.87,147.84,48.54384524]
[1749256388404,9.02627111,147.87,147.84,48.54384524]
[1749256391807,27.83645112,147.88,147.84,48.54384524]
[1749256392398,26.99102814,147.88,147.84,57.57011635]
[1749256392595,17.96475703,147.88,147.85,9.02627111]
[1749256394299,17.96475703,147.88,147.84,48.54384524]
[1749256394631,17.96475703,147.88,147.85,9.02627111]
[1749256394787,17.96475703,147.88,147.86,6.76315433]
[1749256394984,17.96475703,147.88,147.87,41.76]
[1749256395188,26.99102814,147.88,147.87,41.76]
[1749256397813,26.99102814,147.88,147.87,48.52269696]
[1749256398120,17.96475703,147.88,147.87,48.52269696]
[1749256398541,17.96475703,147.88,147.87,57.54896807]
[1749256399302,17.96475703,147.88,147.87,48.52269696]
[1749256402623,17.96475703,147.88,147.87,57.54896807]
[1749256403423,17.96475703,147.88,147.87,48.52269696]
[1749256403640,17.96475703,147.88,147.87,57.54896807]
[1749256416318,17.96475703,147.88,147.87,76.19861693]
[1749256416729,2.4566634,147.93,147.87,93.10535933]
[1749256416928,2.4566634,147.93,147.92,9.02627111]
[1749256416929,0.9508634,147.93,147.92,9.02627111]
[1749256417102,0.9508634,147.93,147.92,50.74627111]
[1749256418404,0.9508634,147.93,147.92,76.156331]
[1749256419310,0.9508634,147.93,147.92,81.20057581]
[1749256419507,0.9508634,147.93,147.92,81.48489895]
[1749256422026,17.15849239,148.0,147.96,44.64964886]
[1749256422215,8.33333333,148.01,147.96,44.64964886]
[1749256422216,8.33333333,148.01,147.99,32.72016478]
[1749256422537,8.33333333,148.01,148.0,14.07051592]
[1749256424346,8.33333333,148.01,148.0,20.82727267]
[1749256426731,8.33333333,148.01,147.98,6.75766995]
[1749256426935,23.24842805,148.01,147.99,41.68]
[1749256427439,22.40384925,148.01,147.99,41.68]
[1749256427739,22.40384925,148.01,147.98,59.33766995]
[1749256429140,14.07051592,148.0,147.98,59.33766995]
[1749256429827,22.40384925,148.01,147.98,59.33766995]
[1749256436336,8.33333333,148.01,147.98,59.33766995]
[1749256436534,9.17795463,148.01,147.98,59.33766995]
[1749256436737,8.33333333,148.01,147.98,59.33766995]
[1749256437355,8.33333333,148.01,147.99,41.66]
[1749256438357,8.33333333,148.01,147.99,48.41710049]
[1749256440160,22.40384925,148.01,147.99,48.41710049]
[1749256440641,22.40384925,148.01,147.99,41.66]
[1749256443365,8.33333333,148.01,147.99,41.66]
[1749256443565,22.40384925,148.01,147.98,17.65751601]
[1749256443741,22.40384925,148.01,147.99,41.66]
[1749256444161,22.40384925,148.01,147.99,48.41720547]
[1749256444471,8.33333333,148.01,147.99,48.41720547]
[1749256445343,9.17794362,148.01,147.99,48.41720547]
[1749256445543,9.17794362,148.01,147.99,41.66]
[1749256445872,23.24845954,148.01,147.99,41.66]
[1749256447456,14.07051592,148.0,147.98,52.56]
[1749256448863,144.30334854,147.99,147.91,6.76086809]
[1749256449046,14.07051592,147.92,147.91,17.64086809]
[1749256449364,14.07051592,147.92,147.91,52.54]
[1749256449565,14.07051592,147.93,147.91,10.88]
[1749256449864,14.07051592,147.93,147.92,41.66]
[1749256450161,14.07051592,147.95,147.92,41.66]
[1749256450364,14.07051592,147.95,147.93,41.66]
[1749256451846,109.73383065,147.96,147.93,41.66]
[1749256452170,14.91546554,147.95,147.93,41.66]
[1749256452551,14.07051592,147.95,147.93,41.66]
[1749256452950,14.07051592,147.95,147.93,48.41976935]
[1749256459192,108.8888,147.96,147.93,62.49028527]
[1749256459689,122.95931592,147.96,147.93,48.41976935]
[1749256465308,117.89884885,147.96,147.93,48.41976935]
[1749256467931,108.8888,147.96,147.93,48.41976935]
[1749256468090,117.89884885,147.96,147.93,48.41976935]
[1749256468290,9.01004885,147.94,147.93,41.66]
[1749256470208,9.01004885,147.94,147.93,41.64]
[1749256472095,5.87291757,147.95,147.93,48.3998945]
[1749256472096,9.01004885,147.95,147.93,48.3998945]
[1749256473314,14.07994743,147.95,147.93,48.3998945]
[1749256474310,124.46914743,147.96,147.93,48.3998945]
[1749256474629,110.3892,147.96,147.93,48.3998945]
[1749256474843,124.46914743,147.96,147.93,48.3998945]
[1749256475603,108.8888,147.96,147.93,48.3998945]
[1749256476021,14.07994743,147.97,147.93,48.3998945]
[1749256477311,14.07994743,147.97,147.93,62.47984193]
[1749256480828,5.87591135,147.98,147.95,14.07994743]
[1749256481040,130.24239505,147.99,147.96,41.64]
[1749256482121,130.24239505,147.99,147.97,6.75812664]
[1749256482321,130.24239505,147.99,147.98,41.64]
[1749256482520,135.27861945,147.99,147.98,41.64]
[1749256482722,20.50874743,147.99,147.98,41.64]
[1749256482916,14.07994743,147.99,147.98,41.64]
[1749256483539,19.11611396,147.99,147.98,41.64]
[1749256487833,14.07994743,147.99,147.98,41.64]
[1749256488021,19.11892088,147.99,147.98,41.64]
[1749256488427,5.03897345,147.99,147.98,41.64]
[1749256488642,19.11892088,147.99,147.98,41.64]
[1749256489851,19.11892088,147.99,147.98,48.39766995]
[1749256490141,14.92468091,148.0,147.98,48.39766995]
[1749256490640,14.07994743,148.0,147.98,48.39766995]
[1749256490941,23.25797053,148.01,147.98,48.39766995]
[1749256491234,22.41328076,148.01,147.98,48.39766995]
[1749256491633,13.37476668,148.01,147.98,62.47761738]
[1749256492534,8.33333333,148.01,147.98,62.47761738]
[1749256493413,8.33333333,148.01,147.99,14.07994743]
[1749256493614,8.33333333,148.01,148.0,41.62]
[1749256494440,8.33333333,148.01,148.0,48.37675675]
[1749256494636,8.33333333,148.01,148.0,62.45670418]
[1749256500343,8.33333333,148.01,148.0,48.37675675]
[1749256501140,22.41328076,148.01,147.99,6.75701879]
[1749256501462,8.33333333,148.01,148.0,48.35675675]
[1749256501755,8.33333333,148.01,148.0,41.6]
[1749256502254,8.33333333,148.01,148.0,48.35675675]
[1749256506473,8.33333333,148.01,148.0,41.6]
[1749256508049,8.33333333,148.01,148.0,48.35675675]
[1749256508260,8.33333333,148.01,148.0,6.75675675]
[1749256508640,8.33333333,148.01,148.0,48.35675675]
[1749256509662,8.33333333,148.01,148.0,41.6]
[1749256512839,8.33333333,148.01,148.0,48.35675675]
[1749256514565,22.41328076,148.01,148.0,48.35675675]
[1749256516448,22.41328076,148.01,148.0,41.6]
[1749256516968,27.44170803,148.01,147.97,41.58]
[1749256517273,14.07994743,147.98,147.95,10.84]
[1749256517566,14.07994743,147.98,147.96,6.7585834]
[1749256517765,14.07994743,147.98,147.97,41.58]
[1749256518970,5.87322951,148.0,147.97,48.33812664]
[1749256518971,14.07994743,147.99,147.97,48.33812664]
[1749256520863,19.1083747,147.99,147.97,41.58]
[1749256521072,14.07994743,147.99,147.97,41.58]
[1749256521452,19.1083747,147.99,147.97,41.58]
[1749256521651,14.07994743,147.99,147.97,41.58]
[1749256522063,19.1083747,147.99,147.97,41.58]
[1749256522263,14.07994743,147.99,147.97,41.58]
[1749256522449,19.11711086,147.99,147.97,41.58]
[1749256522653,14.07994743,147.99,147.97,41.58]
[1749256523375,19.11834256,147.99,147.97,41.58]
[1749256523570,19.11937428,147.99,147.97,41.58]
[1749256524174,14.07994743,147.99,147.97,41.58]
[1749256524550,19.1186768,147.99,147.97,41.58]
[1749256524874,19.11874929,147.99,147.97,41.58]
[1749256525058,14.07994743,147.99,147.97,41.58]
[1749256525261,19.11843732,147.99,147.97,41.58]
[1749256525456,14.07994743,147.98,147.97,41.58]
[1749256525770,14.07994743,147.98,147.96,6.75846544]
[1749256525977,14.07994743,147.98,147.97,41.58]
[1749256528667,19.1195179,147.99,147.97,41.58]
[1749256528875,14.07994743,147.99,147.97,41.58]
[1749256529077,19.1196327,147.99,147.97,48.3381134]
[1749256529279,14.07994743,147.99,147.97,48.3381134]
[1749256529783,19.11966351,147.99,147.97,41.58]
[1749256530382,14.07994743,147.99,147.97,41.58]
[1749256531974,19.11969575,147.99,147.97,41.58]
[1749256532274,19.11968782,147.99,147.97,41.58]
[1749256532581,19.11974914,147.99,147.97,41.58]
[1749256532754,14.07994743,147.99,147.97,41.58]
[1749256532955,19.11978407,147.99,147.97,48.33806223]
[1749256533151,5.03985327,147.99,147.97,48.33806223]
[1749256533364,9.85072548,148.0,147.97,48.33806223]
[1749256533803,9.17805626,148.01,147.98,9.00592324]
[1749256533964,9.17805626,148.01,147.97,48.33806223]
[1749256533965,8.33333333,148.01,148.0,9.00592324]
[1749256534177,8.33333333,148.01,148.0,50.58592324]
[1749256534359,8.33333333,148.01,148.0,61.42592324]
[1749256535583,8.33333333,148.01,148.0,68.18267999]
[1749256536198,8.33333333,148.01,148.0,86.83232885]
[1749256537212,8.33333333,148.01,148.0,91.88392612]
[1749256537514,8.33333333,148.01,148.0,73.23427726]
[1749256538787,8.33333333,148.01,148.0,91.88392612]
[1749256539383,8.33333333,148.01,148.0,92.16824926]
[1749256541495,8.33333333,148.01,148.0,91.88392612]
[1749256542482,8.33333333,148.01,148.0,91.86392612]
[1749256543088,8.33333333,148.01,148.0,31.65427726]
[1749256543419,8.33333333,148.01,148.0,59.15675675]
[1749256543604,8.33333333,148.01,148.0,73.21427726]
[1749256547107,8.33333333,148.01,148.0,91.86392612]
[1749256563332,8.33333333,148.01,148.0,92.14824926]
[1749256564830,8.33333333,148.01,148.0,97.47765563]
[1749256566850,8.33333333,148.01,148.0,98.98425563]
[1749256567053,8.33333333,148.08,148.04,18.64964886]
[1749256567227,8.33333333,148.08,148.07,14.05752051]
[1749256568727,8.33333333,148.08,148.07,20.81108301]
[1749256577750,8.33333333,148.08,148.07,6.7535625]
[1749256577932,8.33333333,148.08,148.07,20.81108301]
[1749256586553,8.33333333,148.08,148.07,6.7535625]
[1749256586736,8.33333333,148.08,148.07,20.81108301]
[1749256588364,8.33333333,148.08,148.07,39.46073187]
[1749256591465,8.33333333,148.08,148.07,39.74505501]
[1749256597070,6.65849405,148.16,148.11,44.64964886]
[1749256597252,1.6156,148.16,148.15,40.05752051]
[1749256597658,11.55809405,148.17,148.15,40.05752051]
[1749256597857,6.5152,148.17,148.16,14.05752051]
[1749256598060,6.5152,148.17,148.16,20.80698055]
[1749256599257,6.5152,148.17,148.16,6.74946004]
[1749256601779,6.5152,148.17,148.15,32.74972905]
[1749256601958,6.5152,148.17,148.16,26.0]
[1749256602160,6.5152,148.17,148.16,32.74946004]
[1749256603183,11.02252028,148.19,148.16,88.28698055]
[1749256606659,11.02252028,148.19,148.18,14.05752051]
[1749256606860,1.5886,148.2,148.18,14.05752051]
[1749256607086,6.3947,148.21,148.19,14.05752051]
[1749256607279,6.3947,148.21,148.2,41.46]
[1749256608877,6.3947,148.21,148.2,48.20763832]
[1749256610185,6.3947,148.21,148.2,62.26515883]
[1749256610384,0.9508634,148.23,148.2,62.26515883]
[1749256610888,0.9508634,148.23,148.21,20.80447505]
[1749256612093,0.9508634,148.23,148.21,6.74695454]
[1749256615065,0.9508634,148.23,148.2,48.20756242]
[1749256615066,15.85173331,148.23,148.2,48.20756242]
[1749256616594,1.7942128,148.23,148.2,48.20756242]
[1749256616796,15.85173331,148.23,148.2,48.20756242]
[1749256617174,0.9508634,148.23,148.2,62.26508293]
[1749256620496,0.9508634,148.23,148.2,6.74756242]
[1749256620676,0.9508634,148.23,148.21,41.44]
[1749256622499,0.9508634,148.23,148.21,48.18717378]
[1749256623399,0.9508634,148.23,148.21,62.24469429]
[1749256626201,0.9508634,148.23,148.21,48.18717378]
[1749256626695,0.9508634,148.23,148.22,14.05752051]
[1749256627277,11.00320518,148.31,148.26,26.0]
[1749256627474,109.73169854,148.34,148.3,14.05752051]
[1749256627679,109.73169854,148.34,148.31,55.47752051]
[1749256627984,0.84289854,148.34,148.31,41.42]
[1749256628499,14.05752051,148.32,148.31,41.42]
[1749256628987,7.58432286,148.34,148.31,41.42]
[1749256629187,7.58432286,148.34,148.28,62.2215173]
[1749256629188,14.05752051,148.32,148.28,62.2215173]
[1749256629395,0.84294007,148.31,148.28,55.47752051]
[1749256631686,0.84294007,148.31,148.28,41.42]
[1749256631886,14.05752051,148.32,148.28,41.42]
[1749256632108,0.84293621,148.31,148.28,41.42]
[1749256632604,0.84294279,148.33,148.28,48.16392252]
[1749256632807,14.05752051,148.32,148.28,62.22144303]
[1749256633705,0.84290896,148.31,148.28,62.22144303]
[1749256634404,0.84290896,148.31,148.28,55.47752051]
[1749256635005,0.84293811,148.34,148.29,14.05752051]
[1749256635189,14.05752051,148.33,148.29,14.05752051]
[1749256635392,14.05752051,148.33,148.28,48.16388562]
[1749256635589,14.05752051,148.33,148.29,14.05752051]
[1749256636006,0.84293811,148.34,148.29,14.05752051]
[1749256636205,14.05752051,148.33,148.29,14.05752051]
[1749256636503,14.05752051,148.34,148.3,6.74308833]
[1749256636712,14.05752051,148.34,148.3,20.80060884]
[1749256637602,7.49837838,148.35,148.3,20.80060884]
[1749256637603,21.55589889,148.35,148.3,20.80060884]
[1749256637995,7.49837838,148.35,148.31,14.05752051]
[1749256638195,16.5365348,148.35,148.31,14.05752051]
[1749256638795,16.0365348,148.35,148.31,14.05752051]
[1749256638996,1.97901429,148.35,148.31,14.05752051]
[1749256639215,21.03954277,148.35,148.3,20.80060884]
[1749256639518,16.0365348,148.35,148.3,20.80060884]
[1749256640291,14.05752051,148.34,148.3,20.80060884]
[1749256640992,16.0365348,148.35,148.31,14.05752051]
[1749256641710,130.44662679,148.36,148.32,55.45752051]
[1749256642093,130.44662679,148.36,148.32,66.21752051]
[1749256643001,130.44662679,148.36,148.32,72.95949347]
[1749256643992,130.44662679,148.36,148.32,58.90197296]
[1749256644194,130.44662679,148.36,148.32,52.16]
[1749256645609,130.44662679,148.36,148.32,58.90208157]
[1749256647608,108.8888,148.38,148.33,14.05752051]
[1749256647796,14.90010405,148.37,148.33,14.05752051]
[1749256647994,123.78890669,148.38,148.33,14.05752051]
[1749256648216,0.84258618,148.38,148.33,14.05752051]
[1749256648406,14.05752051,148.38,148.33,14.05752051]
[1749256648787,14.05752051,148.38,148.34,14.05752051]
[1749256648993,14.05752051,148.38,148.35,41.38]
[1749256650534,2.47724904,148.39,148.35,41.38]
[1749256650535,14.90003815,148.37,148.35,41.38]
[1749256650728,14.05752051,148.36,148.35,41.38]
[1749256652419,0.84251764,148.37,148.35,41.38]
[1749256652607,14.05752051,148.37,148.35,41.38]
[1749256652905,14.90015413,148.36,148.35,41.38]
[1749256655317,14.90018829,148.37,148.35,41.38]
[1749256661424,14.90014955,148.39,148.35,55.43752051]
[1749256661635,21.63927432,148.39,148.35,41.38]
[1749256662435,14.05752051,148.38,148.35,41.38]
[1749256662638,0.84258328,148.37,148.35,41.38]
[1749256662810,0.84258328,148.37,148.33,20.79914129]
[1749256663009,0.84258328,148.37,148.35,41.36]
[1749256665527,14.90010379,148.37,148.35,41.36]
[1749256670241,19.90184409,148.37,148.35,41.36]
[1749256670418,14.90010379,148.37,148.35,41.36]
[1749256670734,19.90184409,148.37,148.35,41.36]
[1749256670938,14.90010379,148.37,148.35,41.36]
[1749256671136,19.90184409,148.37,148.35,41.36]
[1749256671310,5.0017403,148.36,148.35,41.36]
[1749256680046,5.0017403,148.36,148.35,48.10081563]
[1749256680349,6.2523162,148.39,148.35,48.10081563]
[1749256680350,5.04327088,148.37,148.35,57.06185289]
[1749256680543,9.80365331,148.39,148.35,57.06185289]
[1749256680748,5.0431335,148.38,148.35,57.06185289]
[1749256681045,5.0431335,148.37,148.35,57.06185289]
[1749256681350,9.80365331,148.39,148.35,57.06185289]
[1749256681555,5.04453642,148.38,148.35,57.06185289]
[1749256681735,5.04453642,148.37,148.35,57.06185289]
[1749256681943,0.84261605,148.39,148.35,57.06185289]
[1749256682245,5.04404824,148.38,148.35,57.06185289]
[1749256682432,5.04404824,148.37,148.35,57.06185289]
[1749256682633,9.80365331,148.39,148.35,57.06185289]
[1749256682830,5.04557283,148.38,148.35,57.06185289]
[1749256683030,5.04557283,148.37,148.35,57.06185289]
[1749256683254,9.80365331,148.39,148.35,57.06185289]
[1749256683430,5.04634899,148.38,148.35,57.06185289]
[1749256683625,5.04634899,148.37,148.35,57.06185289]
[1749256683827,9.80365331,148.39,148.35,57.06185289]
[1749256684049,5.0459058,148.38,148.35,57.06185289]
[1749256684349,5.0459058,148.37,148.35,57.06185289]
[1749256684546,9.80365331,148.39,148.35,57.06185289]
[1749256684736,5.04675394,148.38,148.35,48.10081563]
[1749256685045,5.04675394,148.37,148.35,48.10081563]
[1749256685251,9.80365331,148.39,148.35,48.10081563]
[1749256685441,5.04805922,148.38,148.35,48.10081563]
[1749256685638,5.04805922,148.37,148.35,48.10081563]
[1749256685842,9.80365331,148.39,148.35,48.10081563]
[1749256686038,5.04755359,148.38,148.35,48.10081563]
[1749256686244,5.04755359,148.37,148.35,48.10081563]
[1749256686430,5.04755359,148.36,148.35,48.10081563]
[1749256686631,9.80365331,148.39,148.35,48.10081563]
[1749256686839,5.04836463,148.38,148.35,48.10081563]
[1749256687040,5.04836463,148.37,148.35,48.10081563]
[1749256687237,9.80365331,148.39,148.35,48.10081563]
[1749256687439,5.04849427,148.38,148.35,48.10081563]
[1749256687640,5.04849427,148.37,148.35,48.10081563]
[1749256687849,5.04827017,148.36,148.35,48.10081563]
[1749256694675,9.80354894,148.4,148.35,57.06185289]
[1749256694850,5.04776488,148.39,148.35,57.06185289]
[1749256695043,5.04776488,148.38,148.36,8.96103726]
[1749256695246,8.96103726,148.4,148.36,8.96103726]
[1749256695439,5.04760037,148.39,148.36,8.96103726]
[1749256695639,8.96103726,148.4,148.36,8.96103726]
[1749256695960,5.04634428,148.39,148.36,8.96103726]
[1749256696161,5.04634428,148.39,148.35,48.10081563]
[1749256696162,7.09471371,148.42,148.38,8.96103726]
[1749256696336,5.04616993,148.41,148.39,41.34]
[1749256696533,9.89879074,148.44,148.4,8.96103726]
[1749256696860,5.04255455,148.43,148.42,8.96103726]
[1749256697038,5.04255455,148.43,148.42,50.30103726]
[1749256697239,5.04255455,148.43,148.42,57.03867369]
[1749256698131,5.04255455,148.43,148.42,48.07763643]
[1749256698335,5.04255455,148.43,148.42,57.03867369]
[1749256698673,24.58746724,148.49,148.42,67.75867369]
[1749256698837,5.87854949,148.48,148.44,8.96103726]
[1749256699039,5.0365756,148.47,148.45,41.34]
[1749256699239,5.0365756,148.46,148.45,41.34]
[1749256699547,5.0365756,148.47,148.45,48.07624523]
[1749256699746,0.84197389,148.48,148.45,41.34]
[1749256699747,5.0365756,148.46,148.45,41.34]
[1749256700054,19.85872558,148.46,148.45,41.34]
[1749256700945,19.85872558,148.46,148.42,41.34]
[1749256701154,13.98016272,148.43,148.42,41.34]
[1749256701662,19.01673832,148.43,148.4,10.72]
[1749256702956,5.0365756,148.42,148.4,10.72]
[1749256703553,19.01673832,148.43,148.4,10.72]
[1749256703756,19.01673832,148.43,148.4,17.45852496]
[1749256703757,5.0365756,148.42,148.4,17.45852496]
[1749256703950,5.0365756,148.42,148.4,10.72]
[1749256704147,19.85902472,148.42,148.4,10.72]
[1749256704456,19.85902472,148.42,148.38,48.05931039]
[1749256704457,5.0365756,148.41,148.38,48.05931039]
[1749256705370,19.01673832,148.41,148.38,48.05931039]
[1749256706669,19.01673832,148.41,148.37,20.72001635]
[1749256706874,0.84240287,148.4,148.37,6.73985363]
[1749256707070,14.82256559,148.4,148.36,24.70016272]
[1749256707277,13.98016272,148.38,148.36,10.72]
[1749256707875,14.82269773,148.38,148.34,55.30016272]
[1749256708261,14.82269773,148.38,148.34,41.32]
[1749256708669,14.82269773,148.38,148.34,48.06110704]
[1749256708670,13.98016272,148.38,148.34,48.06110704]
[1749256709291,13.98016272,148.38,148.34,62.04126976]
[1749256709780,19.01673832,148.38,148.34,62.04126976]
[1749256710079,5.87911038,148.39,148.35,20.72078456]
[1749256710268,14.8226975,148.39,148.35,20.72078456]
[1749256710582,19.8592731,148.39,148.35,20.72078456]
[1749256710751,14.8226975,148.39,148.35,20.72078456]
[1749256710951,13.98016272,148.38,148.35,6.74062184]
[1749256712255,19.01673832,148.38,148.35,6.74062184]
[1749256712656,13.98016272,148.38,148.35,6.74062184]
[1749256712854,19.85927011,148.38,148.35,6.74062184]
[1749256713053,14.82269451,148.38,148.35,6.74062184]
[1749256713277,19.85927011,148.38,148.35,6.74062184]
[1749256713482,13.98016272,148.38,148.35,6.74062184]
[1749256713652,19.01673832,148.38,148.35,6.74062184]
[1749256714584,19.85924145,148.4,148.35,20.72078456]
[1749256715158,5.0365756,148.4,148.36,13.98016272]
[1749256715458,5.0365756,148.4,148.37,13.98016272]
[1749256715660,5.03242791,148.4,148.37,13.98016272]
[1749256715882,0.84242344,148.41,148.37,13.98016272]
[1749256716177,19.85501407,148.41,148.37,20.71962607]
[1749256716359,14.32258616,148.41,148.37,20.71962607]
[1749256716565,19.01259063,148.41,148.37,20.71962607]
[1749256716775,13.98016272,148.41,148.37,20.71962607]
[1749256716966,5.03242791,148.41,148.37,20.71962607]
[1749256717562,19.01259063,148.41,148.37,20.71962607]
[1749256717982,13.98016272,148.41,148.37,20.71962607]
[1749256718278,19.01259063,148.41,148.37,20.71962607]
[1749256718479,13.98016272,148.41,148.37,20.71962607]
[1749256718681,19.58199127,148.41,148.37,20.71962607]
[1749256718867,14.54956336,148.41,148.37,6.73946335]
[1749256719071,19.58278786,148.4,148.37,6.73946335]
[1749256719282,14.54956336,148.4,148.37,6.73946335]
[1749256719784,19.01338722,148.4,148.37,6.73946335]
[1749256721169,13.98016272,148.4,148.37,6.73946335]
[1749256721369,19.58278786,148.4,148.37,6.73946335]
[1749256721687,14.54956336,148.4,148.37,6.73946335]
[1749256721982,13.98016272,148.4,148.37,6.73946335]
[1749256722661,19.58407429,148.4,148.37,6.73946335]
[1749256722961,13.98016272,148.4,148.37,6.73946335]
[1749256723467,5.03495557,148.4,148.37,6.73946335]
[1749256723669,13.98016272,148.41,148.37,6.73946335]
[1749256724070,5.03547131,148.4,148.37,6.73946335]
[1749256724583,13.98016272,148.41,148.37,6.73946335]
[1749256724800,5.03600325,148.4,148.37,6.73946335]
[1749256724964,13.98016272,148.41,148.37,6.73946335]
[1749256725608,5.03620631,148.4,148.37,6.73946335]
[1749256725808,5.60560695,148.4,148.37,6.73946335]
[1749256727898,5.03620631,148.4,148.37,6.73946335]
[1749256728272,14.54956336,148.41,148.37,6.73946335]
[1749256728468,5.03664165,148.4,148.37,6.73946335]
[1749256729599,5.03690276,148.4,148.37,6.73946335]
[1749256730694,5.6063034,148.4,148.37,6.73946335]
[1749256732195,19.58646612,148.42,148.37,20.71962607]
[1749256732370,5.03690276,148.41,148.37,20.71962607]
[1749256732572,14.54956336,148.42,148.37,20.71962607]
[1749256732773,5.03692384,148.41,148.37,20.71962607]
[1749256732981,14.54956336,148.42,148.37,20.71962607]
[1749256733174,5.03692384,148.41,148.37,20.71962607]
[1749256733379,14.54956336,148.42,148.39,6.73899858]
[1749256733695,5.03721737,148.41,148.39,6.73899858]
[1749256734027,14.54956336,148.42,148.39,6.73899858]
[1749256734306,5.03728694,148.41,148.39,6.73899858]
[1749256734475,14.54956336,148.42,148.39,6.73899858]
[1749256734676,5.03756288,148.41,148.39,6.73899858]
[1749256734870,14.54956336,148.42,148.39,6.73899858]
[1749256735089,5.03756288,148.41,148.39,6.73899858]
[1749256735293,14.54956336,148.42,148.39,6.73899858]
[1749256735475,5.03810146,148.41,148.38,6.73945275]
[1749256735681,14.54956336,148.42,148.38,6.73945275]
[1749256735894,5.03810242,148.41,148.38,6.73945275]
[1749256736201,13.98016272,148.41,148.38,6.73945275]
[1749256738199,14.54956336,148.42,148.38,6.73945275]
[1749256738402,5.03893559,148.41,148.38,6.73945275]
[1749256738577,14.54956336,148.42,148.38,6.73945275]
[1749256738773,5.03943305,148.41,148.38,6.73945275]
[1749256738975,5.0395363,148.4,148.38,6.73945275]
[1749256739293,13.98016272,148.41,148.36,23.59118616]
[1749256739493,5.04025524,148.4,148.37,13.98016272]
[1749256739700,13.98016272,148.41,148.37,13.98016272]
[1749256739882,19.02041748,148.4,148.36,37.57134888]
[1749256740081,5.04050487,148.39,148.36,37.57134888]
[1749256740285,13.98016272,148.4,148.36,20.720524]
[1749256740498,5.04050487,148.39,148.36,20.720524]
[1749256740800,13.98016272,148.4,148.36,20.720524]
[1749256740994,5.04036458,148.39,148.36,20.720524]
[1749256741196,13.98016272,148.4,148.36,6.74036128]
[1749256741402,5.04046707,148.39,148.36,6.74036128]
[1749256741607,13.98016272,148.4,148.36,6.74036128]
[1749256741981,5.0406181,148.39,148.36,6.74036128]
[1749256742188,13.98016272,148.4,148.36,6.74036128]
[1749256742396,19.59018195,148.39,148.36,6.74036128]
[1749256742591,19.02147904,148.38,148.36,6.74036128]
[1749256742900,0.56940064,148.39,148.36,6.74036128]
[1749256742901,13.98016272,148.39,148.36,6.74036128]
[1749256743199,5.04131711,148.38,148.36,6.74036128]
[1749256743384,13.98016272,148.39,148.36,6.74036128]
[1749256743797,5.04174652,148.38,148.36,6.74036128]
[1749256744010,13.98016272,148.39,148.36,6.74036128]
[1749256744192,5.04177223,148.38,148.36,6.74036128]
[1749256744510,13.98016272,148.39,148.36,6.74036128]
[1749256744712,5.04395879,148.38,148.36,6.74036128]
[1749256744880,13.98016272,148.39,148.36,6.74036128]
[1749256745697,5.04492056,148.38,148.36,6.74036128]
[1749256745874,13.98016272,148.39,148.36,6.74036128]
[1749256746076,5.04492919,148.38,148.36,6.74036128]
[1749256746277,13.98016272,148.39,148.36,6.74036128]
[1749256746577,5.04531411,148.38,148.36,6.74036128]
[1749256746795,13.98016272,148.39,148.36,6.74036128]
[1749256747201,5.04552552,148.38,148.36,6.74036128]
[1749256747399,13.98016272,148.39,148.36,6.74036128]
[1749256747702,13.98016272,148.4,148.36,20.720524]
[1749256747912,5.04583244,148.39,148.36,20.720524]
[1749256748087,13.98016272,148.4,148.36,20.720524]
[1749256748291,5.04583244,148.39,148.36,20.720524]
[1749256748596,13.98016272,148.4,148.36,20.720524]
[1749256748780,5.0461589,148.39,148.36,20.720524]
[1749256748980,5.0462626,148.38,148.36,6.74036128]
[1749256749190,14.54956336,148.39,148.36,6.74036128]